[Event "*** Titled Tuesday 3|2 Blitz"]
[Site "Chess.com"]
[Date "2016.06.07"]
[Round "9"]
[White "ChessMavenYeti"]
[Black "FearlessKing64"]
[Result "0-1"]
[WhiteElo "2135"]
[BlackElo "2085"]
[TimeControl "180+2"]
[EndTime "12:53:39 PDT"]
[Termination "FearlessKing64 won by checkmate"]

1. d4 {[%clk 0:02:49.3]} 1... Nf6 {[%clk 0:02:57.4]} 2. c4 {[%clk 0:02:49.8]}
2... g6 {[%clk 0:02:58.3]} 3. Nc3 {[%clk 0:02:50.8]} 3... d5 {[%clk 0:02:59.2]}
4. Nf3 {[%clk 0:02:51.8]} 4... Bg7 {[%clk 0:03:00]} 5. Bg5 {[%clk 0:02:53]} 5...
Ne4 {[%clk 0:03:00]} 6. cxd5 {[%clk 0:02:54.2]} 6... Nxg5 {[%clk 0:02:59.6]} 7.
Nxg5 {[%clk 0:02:56.1]} 7... e6 {[%clk 0:03:01]} 8. Qd2 {[%clk 0:02:55.8]} 8...
h6 {[%clk 0:03:01.7]} 9. Nf3 {[%clk 0:02:50.8]} 9... exd5 {[%clk 0:03:02.3]} 10.
Qe3+ {[%clk 0:02:49.3]} 10... Be6 {[%clk 0:02:59.1]} 11. O-O-O {[%clk
0:02:43.6]} 11... O-O {[%clk 0:02:57.5]} 12. Ne5 {[%clk 0:02:43.2]} 12... Nd7
{[%clk 0:02:35.9]} 13. Nxg6 {[%clk 0:02:40.6]} 13... c5 {[%clk 0:02:30.1]} 14.
Nxf8 {[%clk 0:02:39.2]} 14... Nxf8 {[%clk 0:02:12]} 15. Qd3 {[%clk 0:02:23]}
15... cxd4 {[%clk 0:02:09.3]} 16. Nb5 {[%clk 0:02:21.5]} 16... Qg5+ {[%clk
0:01:49.3]} 17. Qd2 {[%clk 0:02:16.2]} 17... Rc8+ {[%clk 0:01:33.4]} 18. Nc3
{[%clk 0:01:55.7]} 18... dxc3 {[%clk 0:01:27.2]} 19. Qxg5 {[%clk 0:01:56.5]}
19... cxb2+ {[%clk 0:01:23.1]} 20. Kb1 {[%clk 0:01:56.2]} 20... hxg5 {[%clk
0:01:22.9]} 21. e3 {[%clk 0:01:52.3]} 21... Nd7 {[%clk 0:01:11.7]} 22. Bd3
{[%clk 0:01:46]} 22... Nc5 {[%clk 0:01:11.7]} 23. Bc2 {[%clk 0:01:47.1]} 23...
b5 {[%clk 0:01:05.7]} 24. h4 {[%clk 0:01:47.2]} 24... Na4 {[%clk 0:00:55.8]} 25.
Rde1 {[%clk 0:01:12.9]} 25... Rxc2 {[%clk 0:00:47.8]} 26. Kxc2 {[%clk
0:01:12.7]} 26... Bf5+ {[%clk 0:00:46.2]} 27. Kb3 {[%clk 0:01:09.6]} 27... a5
{[%clk 0:00:33.8]} 28. e4 {[%clk 0:01:01.2]} 28... dxe4 {[%clk 0:00:26.2]} 29.
Re3 {[%clk 0:01:00.5]} 29... Nc5+ {[%clk 0:00:21.9]} 30. Kc2 {[%clk 0:01:00.1]}
30... b4 {[%clk 0:00:18.4]} 31. hxg5 {[%clk 0:00:59.6]} 31... Nd3 {[%clk
0:00:18.6]} 32. g4 {[%clk 0:00:56.4]} 32... Bg6 {[%clk 0:00:18.1]} 33. Rh2
{[%clk 0:00:54.7]} 33... Nc5 {[%clk 0:00:15.6]} 34. Rh1 {[%clk 0:00:54.1]} 34...
Na4 {[%clk 0:00:14.6]} 35. Rd1 {[%clk 0:00:53.9]} 35... Nc3 {[%clk 0:00:14.3]}
36. Rd8+ {[%clk 0:00:49.7]} 36... Bf8 {[%clk 0:00:13.7]} 37. Kxb2 {[%clk
0:00:50.7]} 37... Nd1+ {[%clk 0:00:14.2]} 38. Kb3 {[%clk 0:00:50.9]} 38... Nxe3
{[%clk 0:00:16.1]} 39. fxe3 {[%clk 0:00:52.6]} 39... Kg7 {[%clk 0:00:17]} 40.
Ka4 {[%clk 0:00:53.5]} 40... Bc5 {[%clk 0:00:15.6]} 41. Kxa5 {[%clk 0:00:53.3]}
41... Bxe3 {[%clk 0:00:17.2]} 42. Kxb4 {[%clk 0:00:54.4]} 42... Bxg5 {[%clk
0:00:18.8]} 43. Re8 {[%clk 0:00:52.3]} 43... e3 {[%clk 0:00:17.3]} 44. Kc3
{[%clk 0:00:50.2]} 44... f5 {[%clk 0:00:15]} 45. Re5 {[%clk 0:00:48.5]} 45...
Bf6 {[%clk 0:00:15.4]} 46. Kd4 {[%clk 0:00:47.7]} 46... f4 {[%clk 0:00:14]} 47.
g5 {[%clk 0:00:45.1]} 47... Bxe5+ {[%clk 0:00:14.9]} 48. Kxe5 {[%clk 0:00:47]}
48... e2 {[%clk 0:00:13.5]} 49. Kxf4 {[%clk 0:00:48.9]} 49... e1=Q {[%clk
0:00:15]} 50. Kg4 {[%clk 0:00:50.2]} 50... Qd2 {[%clk 0:00:16.4]} 51. a4 {[%clk
0:00:50.7]} 51... Qa2 {[%clk 0:00:17.8]} 52. a5 {[%clk 0:00:51.9]} 52... Qa4+
{[%clk 0:00:19.2]} 53. Kg3 {[%clk 0:00:53.2]} 53... Qxa5 {[%clk 0:00:20.7]} 54.
Kg4 {[%clk 0:00:55.1]} 54... Qf5+ {[%clk 0:00:21.7]} 55. Kh4 {[%clk 0:00:56.3]}
55... Qf4+ {[%clk 0:00:20.9]} 56. Kh3 {[%clk 0:00:57.5]} 56... Qxg5 {[%clk
0:00:22.1]} 57. Kh2 {[%clk 0:00:58.5]} 57... Kf6 {[%clk 0:00:23]} 58. Kh1 {[%clk
0:01:00.4]} 58... Kf5 {[%clk 0:00:24.4]} 59. Kh2 {[%clk 0:01:02.3]} 59... Kf4
{[%clk 0:00:25.5]} 60. Kh3 {[%clk 0:01:04.2]} 60... Qg3# {[%clk 0:00:25.7]} 0-1

[Event "*** Titled Tuesday 3|2 Blitz"]
[Site "Chess.com"]
[Date "2016.06.07"]
[Round "9"]
[White "matej2221"]
[Black "NewBornNow"]
[Result "1-0"]
[WhiteElo "2469"]
[BlackElo "2557"]
[TimeControl "180+2"]
[EndTime "12:54:37 PDT"]
[Termination "matej2221 won by checkmate"]

1. e4 {[%clk 0:03:01.9]} 1... c5 {[%clk 0:02:59.7]} 2. Nf3 {[%clk 0:03:02.7]}
2... d6 {[%clk 0:03:01]} 3. d4 {[%clk 0:03:04]} 3... cxd4 {[%clk 0:03:02.6]} 4.
Nxd4 {[%clk 0:03:05.9]} 4... Nf6 {[%clk 0:03:03.9]} 5. f3 {[%clk 0:03:07]} 5...
e5 {[%clk 0:03:02.6]} 6. Nb3 {[%clk 0:03:07.8]} 6... Be7 {[%clk 0:03:00.2]} 7.
c4 {[%clk 0:03:08.8]} 7... O-O {[%clk 0:03:01]} 8. Nc3 {[%clk 0:03:10]} 8... a5
{[%clk 0:03:01.9]} 9. Be3 {[%clk 0:03:10.9]} 9... a4 {[%clk 0:03:01.7]} 10. Nd2
{[%clk 0:03:12.3]} 10... Nc6 {[%clk 0:03:01]} 11. Be2 {[%clk 0:03:12.7]} 11...
Be6 {[%clk 0:03:01.7]} 12. O-O {[%clk 0:03:14]} 12... Qa5 {[%clk 0:02:58.3]} 13.
Rc1 {[%clk 0:03:15]} 13... Bd8 {[%clk 0:02:57.5]} 14. Nd5 {[%clk 0:03:01.6]}
14... Bxd5 {[%clk 0:02:56.6]} 15. cxd5 {[%clk 0:03:02.4]} 15... Bb6 {[%clk
0:02:57.4]} 16. Nc4 {[%clk 0:02:58.4]} 16... Bxe3+ {[%clk 0:02:57.4]} 17. Nxe3
{[%clk 0:03:00.3]} 17... Nd4 {[%clk 0:02:55]} 18. Nc2 {[%clk 0:02:46.6]} 18...
Qb6 {[%clk 0:02:44.9]} 19. Nxd4 {[%clk 0:02:27.3]} 19... exd4 {[%clk 0:02:42.2]}
20. Rf2 {[%clk 0:02:25.3]} 20... Rfc8 {[%clk 0:02:38.8]} 21. Bd3 {[%clk
0:02:18.6]} 21... Nd7 {[%clk 0:02:33.3]} 22. Rxc8+ {[%clk 0:01:56.9]} 22... Rxc8
{[%clk 0:02:33.2]} 23. Qxa4 {[%clk 0:01:58.4]} 23... Nc5 {[%clk 0:02:21.2]} 24.
Qb5 {[%clk 0:01:52.5]} 24... Qa7 {[%clk 0:02:03.7]} 25. a3 {[%clk 0:01:47.9]}
25... g6 {[%clk 0:01:36.2]} 26. Rc2 {[%clk 0:01:45.8]} 26... Rf8 {[%clk
0:01:23]} 27. h3 {[%clk 0:01:46.1]} 27... h5 {[%clk 0:01:22.7]} 28. Kh2 {[%clk
0:01:47]} 28... h4 {[%clk 0:01:22.7]} 29. Qc4 {[%clk 0:01:46.9]} 29... Nd7
{[%clk 0:01:21.6]} 30. Qb4 {[%clk 0:01:30.2]} 30... Ne5 {[%clk 0:01:18.9]} 31.
Rd2 {[%clk 0:01:31.1]} 31... Qc5 {[%clk 0:01:05.4]} 32. Qxc5 {[%clk 0:01:20.6]}
32... dxc5 {[%clk 0:01:05.5]} 33. Bb5 {[%clk 0:01:22.5]} 33... g5 {[%clk
0:01:03]} 34. Kg1 {[%clk 0:01:20.7]} 34... f5 {[%clk 0:01:02.5]} 35. b4 {[%clk
0:01:15]} 35... b6 {[%clk 0:00:54.6]} 36. bxc5 {[%clk 0:01:07.1]} 36... bxc5
{[%clk 0:00:55.6]} 37. a4 {[%clk 0:01:04.6]} 37... fxe4 {[%clk 0:00:54.7]} 38.
fxe4 {[%clk 0:01:04.9]} 38... Rf4 {[%clk 0:00:51.7]} 39. d6 {[%clk 0:00:29.8]}
39... Rf6 {[%clk 0:00:43.9]} 40. d7 {[%clk 0:00:24.9]} 40... Rd6 {[%clk
0:00:44.4]} 41. a5 {[%clk 0:00:24.5]} 41... Nxd7 {[%clk 0:00:41.6]} 42. a6
{[%clk 0:00:21.4]} 42... Nb6 {[%clk 0:00:42.2]} 43. a7 {[%clk 0:00:19.2]} 43...
Kg7 {[%clk 0:00:40.6]} 44. e5 {[%clk 0:00:14.4]} 44... Rd5 {[%clk 0:00:40.5]}
45. Bc4 {[%clk 0:00:11.5]} 45... Rxe5 {[%clk 0:00:34.9]} 46. Rb2 {[%clk
0:00:13.1]} 46... Nxc4 {[%clk 0:00:20.9]} 47. Rb7+ {[%clk 0:00:14]} 47... Kf6
{[%clk 0:00:20.6]} 48. a8=Q {[%clk 0:00:15.6]} 48... Re1+ {[%clk 0:00:19.6]} 49.
Kf2 {[%clk 0:00:16.5]} 49... Rc1 {[%clk 0:00:20.6]} 50. Qf8+ {[%clk 0:00:17.5]}
50... Ke6 {[%clk 0:00:21.1]} 51. Qf7+ {[%clk 0:00:18.3]} 51... Kd6 {[%clk
0:00:21.1]} 52. Qf6+ {[%clk 0:00:18]} 52... Kd5 {[%clk 0:00:21]} 53. Rd7+ {[%clk
0:00:19.1]} 53... Ke4 {[%clk 0:00:21.6]} 54. Qf3+ {[%clk 0:00:15.2]} 54... Ke5
{[%clk 0:00:21.4]} 55. Qd5+ {[%clk 0:00:16]} 55... Kf4 {[%clk 0:00:21.4]} 56.
Rf7# {[%clk 0:00:16.6]} 1-0

[Event "*** Titled Tuesday 3|2 Blitz"]
[Site "Chess.com"]
[Date "2016.06.07"]
[Round "9"]
[White "Aguiar94"]
[Black "SloLev"]
[Result "0-1"]
[WhiteElo "2333"]
[BlackElo "2115"]
[TimeControl "180+2"]
[EndTime "12:54:44 PDT"]
[Termination "SloLev won on time"]

1. e4 {[%clk 0:03:01.9]} 1... c5 {[%clk 0:02:59.4]} 2. Nf3 {[%clk 0:02:55.4]}
2... e6 {[%clk 0:03:00.4]} 3. d4 {[%clk 0:02:55.5]} 3... cxd4 {[%clk 0:03:02.2]}
4. Nxd4 {[%clk 0:02:57.4]} 4... a6 {[%clk 0:03:03.9]} 5. Bd3 {[%clk 0:02:57.3]}
5... Qc7 {[%clk 0:03:05.4]} 6. O-O {[%clk 0:02:56.9]} 6... Nf6 {[%clk
0:03:04.5]} 7. Qe2 {[%clk 0:02:57]} 7... d6 {[%clk 0:03:05.1]} 8. c4 {[%clk
0:02:46.8]} 8... Be7 {[%clk 0:03:04.9]} 9. Nc3 {[%clk 0:02:47.1]} 9... O-O
{[%clk 0:03:05.5]} 10. f4 {[%clk 0:02:46.8]} 10... Nbd7 {[%clk 0:03:00.7]} 11.
f5 {[%clk 0:02:43.1]} 11... Ne5 {[%clk 0:02:48.5]} 12. Be3 {[%clk 0:02:15.4]}
12... Bd7 {[%clk 0:02:37.1]} 13. Rac1 {[%clk 0:02:13.8]} 13... Rac8 {[%clk
0:02:35.6]} 14. Bb1 {[%clk 0:01:58.1]} 14... Qxc4 {[%clk 0:02:32.2]} 15. Nd5
{[%clk 0:01:55.6]} 15... exd5 {[%clk 0:02:26.7]} 16. Rxc4 {[%clk 0:01:55.1]}
16... dxc4 {[%clk 0:02:27.8]} 17. h3 {[%clk 0:01:26.7]} 17... Rfe8 {[%clk
0:02:16.8]} 18. Rc1 {[%clk 0:01:22.3]} 18... b5 {[%clk 0:02:15.9]} 19. Qd2
{[%clk 0:01:20.7]} 19... Bf8 {[%clk 0:02:12.8]} 20. Qa5 {[%clk 0:01:20.6]} 20...
Nd3 {[%clk 0:02:00.5]} 21. Bxd3 {[%clk 0:01:17.9]} 21... cxd3 {[%clk 0:02:01.6]}
22. Rxc8 {[%clk 0:01:17.7]} 22... Bxc8 {[%clk 0:02:02.6]} 23. Qd2 {[%clk
0:01:10.4]} 23... Rxe4 {[%clk 0:02:01.8]} 24. Qxd3 {[%clk 0:01:10.1]} 24... d5
{[%clk 0:02:03]} 25. Bf2 {[%clk 0:01:07.8]} 25... Bd6 {[%clk 0:01:55.7]} 26. g4
{[%clk 0:01:06.6]} 26... h6 {[%clk 0:01:55.4]} 27. Kg2 {[%clk 0:01:04.2]} 27...
Bd7 {[%clk 0:01:51.5]} 28. Bh4 {[%clk 0:01:02.2]} 28... Nxg4 {[%clk 0:01:47.5]}
29. hxg4 {[%clk 0:00:55.8]} 29... Rxg4+ {[%clk 0:01:48.3]} 30. Kh3 {[%clk
0:00:57.2]} 30... g6 {[%clk 0:01:47.9]} 31. Bf6 {[%clk 0:00:37.3]} 31... Re4
{[%clk 0:01:40.9]} 32. Kg2 {[%clk 0:00:34.8]} 32... h5 {[%clk 0:01:37.8]} 33.
Qc3 {[%clk 0:00:28.3]} 33... h4 {[%clk 0:01:33.2]} 34. Qa5 {[%clk 0:00:27.6]}
34... Bf8 {[%clk 0:00:56.7]} 35. Qxa6 {[%clk 0:00:25.5]} 35... Bxf5 {[%clk
0:00:56.9]} 36. Nxf5 {[%clk 0:00:24.6]} 36... gxf5 {[%clk 0:00:57.8]} 37. Qxb5
{[%clk 0:00:24.6]} 37... Rg4+ {[%clk 0:00:58]} 38. Kh1 {[%clk 0:00:23.5]} 38...
Kh7 {[%clk 0:00:55]} 39. Qxd5 {[%clk 0:00:23.2]} 39... Kg6 {[%clk 0:00:56.1]}
40. Bc3 {[%clk 0:00:21.7]} 40... Re4 {[%clk 0:00:52.8]} 41. a4 {[%clk 0:00:22]}
41... Bh6 {[%clk 0:00:48]} 42. a5 {[%clk 0:00:21.9]} 42... Be3 {[%clk
0:00:43.7]} 43. a6 {[%clk 0:00:17.5]} 43... Rg4 {[%clk 0:00:42.5]} 44. Qc6+
{[%clk 0:00:16.8]} 44... Kh5 {[%clk 0:00:40.2]} 45. Qf6 {[%clk 0:00:16]} 45...
h3 {[%clk 0:00:34.1]} 46. Qxf5+ {[%clk 0:00:14.2]} 46... Bg5 {[%clk 0:00:34]}
47. a7 {[%clk 0:00:13.9]} 47... Ra4 {[%clk 0:00:31.6]} 48. Qxf7+ {[%clk
0:00:13.4]} 48... Kh4 {[%clk 0:00:30.2]} 49. Qh7+ {[%clk 0:00:13.6]} 49... Kg3
{[%clk 0:00:28.4]} 50. Qd3+ {[%clk 0:00:13.2]} 50... Kg4 {[%clk 0:00:28.1]} 0-1

[Event "*** Titled Tuesday 3|2 Blitz"]
[Site "Chess.com"]
[Date "2016.06.07"]
[Round "9"]
[White "annakantane"]
[Black "Abrito99"]
[Result "1-0"]
[WhiteElo "2346"]
[BlackElo "2386"]
[TimeControl "180+2"]
[EndTime "12:54:46 PDT"]
[Termination "annakantane won on time"]

1. e4 {[%clk 0:03:01.9]} 1... e6 {[%clk 0:03:01]} 2. c4 {[%clk 0:03:00.7]} 2...
d5 {[%clk 0:03:01.1]} 3. cxd5 {[%clk 0:03:01.2]} 3... exd5 {[%clk 0:03:03]} 4.
exd5 {[%clk 0:03:02.3]} 4... Qxd5 {[%clk 0:03:04.6]} 5. Nc3 {[%clk 0:03:00.1]}
5... Qd8 {[%clk 0:03:05.4]} 6. Nf3 {[%clk 0:02:58.3]} 6... Nf6 {[%clk
0:03:01.4]} 7. d4 {[%clk 0:02:58.1]} 7... Be7 {[%clk 0:02:44.4]} 8. Bd3 {[%clk
0:02:54.6]} 8... O-O {[%clk 0:02:41.7]} 9. O-O {[%clk 0:02:53.4]} 9... c6 {[%clk
0:02:41.5]} 10. h3 {[%clk 0:02:46.3]} 10... Nbd7 {[%clk 0:02:40.8]} 11. Re1
{[%clk 0:02:42.9]} 11... Re8 {[%clk 0:02:39.2]} 12. Bc2 {[%clk 0:02:37.2]} 12...
Nf8 {[%clk 0:02:36.5]} 13. Bg5 {[%clk 0:02:18.6]} 13... Be6 {[%clk 0:02:24.7]}
14. Ne5 {[%clk 0:02:01]} 14... Nd5 {[%clk 0:02:11.5]} 15. Bxe7 {[%clk 0:02:00]}
15... Qxe7 {[%clk 0:02:10.6]} 16. Qf3 {[%clk 0:01:43.5]} 16... Rad8 {[%clk
0:02:07]} 17. Rad1 {[%clk 0:01:30.6]} 17... Qf6 {[%clk 0:02:04.9]} 18. Qg3
{[%clk 0:01:26.4]} 18... Qf4 {[%clk 0:01:56.4]} 19. Qxf4 {[%clk 0:00:43.6]}
19... Nxf4 {[%clk 0:01:55.1]} 20. Ne4 {[%clk 0:00:43.5]} 20... Bd5 {[%clk
0:01:32]} 21. Kh2 {[%clk 0:00:35.5]} 21... f6 {[%clk 0:00:59.9]} 22. Nf3 {[%clk
0:00:35.5]} 22... b6 {[%clk 0:00:29.1]} 23. Kg3 {[%clk 0:00:32.4]} 23... N4e6
{[%clk 0:00:21.4]} 24. a3 {[%clk 0:00:22.6]} 24... Nc7 {[%clk 0:00:21.3]} 25. h4
{[%clk 0:00:21.8]} 25... Bf7 {[%clk 0:00:22]} 26. Nc3 {[%clk 0:00:21.8]} 26...
Nfe6 {[%clk 0:00:18.2]} 27. Be4 {[%clk 0:00:21.9]} 27... Rd6 {[%clk 0:00:15.3]}
28. Rd2 {[%clk 0:00:20.2]} 28... Red8 {[%clk 0:00:14]} 29. Red1 {[%clk
0:00:21.4]} 29... Nf8 {[%clk 0:00:13.1]} 30. Bf5 {[%clk 0:00:22.5]} 30... Nd5
{[%clk 0:00:10.3]} 31. Ne4 {[%clk 0:00:22.7]} 31... Ne7 {[%clk 0:00:10.3]} 32.
Nxd6 {[%clk 0:00:23.6]} 32... Rxd6 {[%clk 0:00:11.9]} 33. Be4 {[%clk 0:00:25]}
33... f5 {[%clk 0:00:12.8]} 34. Bb1 {[%clk 0:00:25.7]} 34... Bh5 {[%clk
0:00:13.3]} 35. Re1 {[%clk 0:00:25.2]} 35... Nd5 {[%clk 0:00:11.6]} 36. Ne5
{[%clk 0:00:26.2]} 36... f4+ {[%clk 0:00:12.7]} 37. Kh2 {[%clk 0:00:27]} 37...
Be8 {[%clk 0:00:12.3]} 38. Ba2 {[%clk 0:00:26.4]} 38... g6 {[%clk 0:00:11.3]}
39. Rc2 {[%clk 0:00:23.9]} 39... Kg7 {[%clk 0:00:11.3]} 40. Nd3 {[%clk 0:00:24]}
40... Bd7 {[%clk 0:00:11.3]} 41. Bxd5 {[%clk 0:00:24.4]} 41... Rxd5 {[%clk
0:00:11.7]} 42. Nxf4 {[%clk 0:00:19.2]} 42... Rxd4 {[%clk 0:00:13.1]} 43. Kg3
{[%clk 0:00:20.2]} 43... c5 {[%clk 0:00:14.3]} 44. Ree2 {[%clk 0:00:15.8]} 44...
Bf5 {[%clk 0:00:13.1]} 45. Rcd2 {[%clk 0:00:16.5]} 45... Kf6 {[%clk 0:00:11.5]}
46. Nd5+ {[%clk 0:00:13.6]} 46... Kg7 {[%clk 0:00:12.1]} 47. Re7+ {[%clk
0:00:14]} 47... Kh6 {[%clk 0:00:12.6]} 48. Rxd4 {[%clk 0:00:14.3]} 48... cxd4
{[%clk 0:00:14.5]} 49. f3 {[%clk 0:00:08.9]} 49... Ne6 {[%clk 0:00:14]} 50. Kf2
{[%clk 0:00:08.6]} 50... g5 {[%clk 0:00:15.5]} 51. hxg5+ {[%clk 0:00:08.3]}
51... Kxg5 {[%clk 0:00:17.4]} 52. g4 {[%clk 0:00:09.9]} 52... Bg6 {[%clk
0:00:18.4]} 53. Rxe6 {[%clk 0:00:11.3]} 53... d3 {[%clk 0:00:18]} 54. Rd6 {[%clk
0:00:11.7]} 1-0